Cogmind - Beta 14 @@@ ROGUE MODE // 2024.09.07 @ 01:48:38 Player: Null_error Result: Destroyed by S-27 Virus with Autogun Performance ------------- Evolutions (3) 1500 Regions Visited (8) 1600 Robots Destroyed (59) 295 Value Destroyed (1399) 1399 Prototype IDs (24) 480 Alien Tech Used (0) 0 Bonus (136) 136 TOTAL SCORE: 5410 Bonus ------- Follower Combat Kills 7 Aligned with FarCom 300 Friendly Fire -171 Cogmind --------- Core Integrity 0/700 Matter 295/300 Energy 99/100 System Corruption 3% Temperature Cool (0) Movement Core (50) Location -7/Lower Caves Parts ------- > --- POWER (2) -------- (None) > --- PROPULSION (5) --- (None) > --- UTILITY (4) ------ Coolant Injector > --- WEAPON (2) ------- (None) > --- INVENTORY (5) ---- Matter Filter Particle Cannon Particle Cannon Makeshift Shrapnel Gun Remote Datajack Peak State ------------ > --- POWER ------------ Improved Deuterium Engine Micro Nuclear Core > --- PROPULSION ------- Compact Wheel Compact Wheel Armored Wheel Gravmag System > --- UTILITY ---------- Improved Terrain Scanner Terrain Scan Processor Target Analyzer Advanced ECM Suite > --- WEAPON ----------- Pulse Rifle Latent Energy Streamer > --- INVENTORY -------- Matter Filter Improved Medium Armor Plating High-powered Tractor Beam Advanced Beam Cannon Gauss Cannon [Rating: 42] Favorites ----------- Power Improved Ion Engine Engine Improved Ion Engine Power Core Micro Nuclear Core Propulsion Armored Wheel Leg Improved Aluminum Leg Wheel Armored Wheel Hover Unit Gravmag System Flight Unit Cesium-ion Thruster Utility Small Storage Unit Device Improved Terrain Scanner Storage Small Storage Unit Processor Terrain Scan Processor Protection Improved Light Armor Plating Weapon Advanced Beam Cannon Energy Gun Pulse Rifle Energy Cannon Advanced Beam Cannon Ballistic Gun Light Assault Rifle Ballistic Cannon Gauss Cannon Launcher Grenade Launcher Piercing Weapon Makeshift Spear Special Melee Weapon Datajack Build | -11 -10 -10 -10 -9 -8 -7 -7 -7 ------- Run | Yrd Mat Min Exi Min Mat Fac Low Low Slots Evolved 6 | . . . . . 4 2 . . Power 1 | . . . . . . 1 . . Propulsion 3 | . . . . . 3 . . . Utility 2 | . . . . . 1 1 . . Weapon . | . . . . . . . . . Parts Attached 84 | 6 13 7 2 2 16 18 14 6 Power 13 | 1 1 3 . . 4 3 1 . Engine 8 | 1 . 1 . . 4 1 1 . Core 5 | . 1 2 . . . 2 . . Reactor . | . . . . . . . . . Propulsion 21 | 2 3 . 1 . 6 5 2 2 Treads . | . . . . . . . . . Leg 5 | . . . . . 2 . 2 1 Wheel 12 | 2 3 . 1 . 2 4 . . Hover 3 | . . . . . 1 1 . 1 Flight 1 | . . . . . 1 . . . Utility 22 | 1 5 . 1 1 2 6 4 2 Device 14 | . 4 . 1 1 1 4 2 1 Storage 2 | 1 1 . . . . . . . Processor 3 | . . . . . 1 2 . . Hackware . | . . . . . . . . . Protection 3 | . . . . . . . 2 1 Artifact . | . . . . . . . . . Weapon 28 | 2 4 4 . 1 4 4 7 2 Energy Gun 4 | 1 1 . . . . 1 1 . Energy Cannon 11 | . 3 2 . . 3 2 1 . Ballistic Gun 3 | 1 . 1 . . . . . 1 Ballistic Cannon 6 | . . . . . . 1 5 . Launcher 1 | . . 1 . . . . . . Special Weapon . | . . . . . . . . . Impact Weapon . | . . . . . . . . . Slashing Weapon . | . . . . . . . . . Piercing Weapon 1 | . . . . 1 . . . . Special Melee Weapon 2 | . . . . . 1 . . 1 Unidentified Prototypes 1 | . 1 . . . . . . . Parts Lost 34 | . . 5 . . 6 5 13 5 Power 3 | . . 1 . . 2 . . . Propulsion 11 | . . . . . 2 3 4 2 Utility 11 | . . 1 . . 1 2 6 1 Weapon 9 | . . 3 . . 1 . 3 2 Highest Loss Streak 5 | . . 3 . . 3 3 5 4 To Critical Strikes . | . . . . . . . . . Average Slot Usage (%) 79 | . 98 97 93 100 78 95 39 18 Engine 5 | . 3 5 14 14 7 3 . . Core 4 | . 10 8 . . . 10 . . Leg 1 | . . . . . 1 6 1 4 Wheel 19 | . 28 28 28 28 14 27 1 . Hover 1 | . . . . . 6 . 1 3 Device 11 | . 12 13 8 14 8 19 8 . Storage 7 | . 14 14 14 14 9 . . . Processor 5 | . . . . . 8 9 13 . Energy Gun 1 | . . . . . . 5 3 . Energy Cannon 11 | . 27 24 14 14 7 2 . . Ballistic Gun 2 | . . . 14 5 . . . 2 Ballistic Cannon 2 | . . . . . . 5 6 . Piercing Weapon 1 | . . . . 8 7 . . . Peak Build Rating 42 | 6 18 18 15 20 38 42 36 18 Average Rating 20 | 4 16 16 13 18 29 34 17 9 On Entrance 13 | . 6 18 12 15 20 10 36 1 Naked Turns 96 | . . . . . . . 44 52 Heaviest Build 34 | 12 26 21 18 19 32 34 20 8 Greatest Support 60 | 20 24 24 24 24 24 60 30 20 Greatest Overweight (x) 10 | . 1 . . . 10 3 5 . Average Overweight (x) . | . . . . . . . 1 . Largest Inventory Capacity 8 | 8 8 8 8 8 8 8 5 5 Average Capacity 6 | 6 8 8 8 8 8 5 5 5 Most Carried 8 | 4 8 8 8 8 8 5 5 5 Average Carried 6 | 2 7 7 6 7 6 4 4 4 Final Capacity 8 | 8 8 8 8 8 8 5 5 5 Final Carried 8 | 4 8 7 8 7 6 5 3 5 Class Distribution -------------------- 64% | Mutant 10% | Assassin 8% | Scavenger-Mutant 7% | Skirmisher 4% | Scavenger-Assassin 3% | Scavenger-Skirmisher Dominant Class ---------------- Mutant | -10/Materials Mutant | -10/Mines Mutant | -10/Exiles Assassin | -9/Mines Scavenger-Assassin | -8/Materials Skirmisher | -7/Factory Mutant | -7/Lower Caves Mutant | -7/Lower Caves Resources | -11 -10 -10 -10 -9 -8 -7 -7 -7 ----------- Run | Yrd Mat Min Exi Min Mat Fac Low Low Matter Collected 1264 | 231 220 107 20 40 125 57 332 132 Remotely . | . . . . . . . . . Salvage Created 1849 | . 723 333 . 114 202 325 152 . Parts 106 | . 54 15 . 2 12 17 6 . Haulers Intercepted 1 | . 1 . . . . . . . Recyclers Shooed 2 | . 1 1 . . . . . . Parts Field Recycled . | . . . . . . . . . Retrieved Matter . | . . . . . . . . . Parts Self-Destructed 8 | . . . . . . . 6 2 Prevented 2 | . . . . . . . . 2 Kills | -11 -10 -10 -10 -9 -8 -7 -7 -7 ------- Run | Yrd Mat Min Exi Min Mat Fac Low Low Combat Hostiles Destroyed 40 | . 10 10 . 4 4 7 5 . Melee 2 | . . . . 2 . . . . Cannons 29 | . 10 7 . 1 2 4 5 . AOE 6 | . . 2 . . 1 3 . . Classes Destroyed 16 | . 8 1 . 1 4 2 . . Worker 7 | . 3 1 . . . 3 . . Builder 1 | . . 1 . . . . . . Tunneler 3 | . 2 . . . . 1 . . Hauler 1 | . 1 . . . . . . . Recycler 4 | . 3 1 . . . . . . Mechanic 1 | . . . . . 1 . . . Operator 1 | . 1 . . . . . . . Watcher 2 | . 2 . . . . . . . Swarmer 14 | . 6 8 . . . . . . Grunt 18 | . 4 3 . 2 . 5 4 . Duelist 3 | . . . . . 2 . 1 . Protector 1 | . . . . . 1 . . . Sentry 1 | . . . . . 1 . . . Hunter 1 | . . . . . . 1 . . Programmer 1 | . . . . . . 1 . . Assembled 2 | . . . . 2 . . . . Best Kill Streak 9 | . 9 3 . 2 2 7 1 . Combat Bots Only 5 | . 5 3 . 2 1 4 1 . Max Kills in Single Turn 6 | . 2 1 . 1 2 6 1 . Gunslinging . | . . . . . . . . . Exploded 3 | . . 1 . . 1 3 . . Melee 1 | . . . . 1 . . . . Uniques/NPCs Destroyed . | . . . . . . . . . Combat | -11 -10 -10 -10 -9 -8 -7 -7 -7 -------- Run | Yrd Mat Min Exi Min Mat Fac Low Low Hostile Shots Fired 435 | . 53 57 . 8 69 52 126 70 Missed 142 | . 16 18 . 4 20 11 40 33 Damage Taken 4596 | . 307 414 . 53 1183 634 1463 542 Core 1230 | . 35 72 . 14 406 117 294 292 Absorbed by Shields . | . . . . . . . . . Redirected to Shielding 48 | . . . . . . . 48 . Core Remaining (%) 59 | 100 . . . 51 26 . . . Volleys Fired 147 | . 32 43 . 7 14 25 26 . Largest 2 | . 2 2 . 1 1 2 2 . Hottest 250 | . 136 136 . 68 250 123 121 . Shots Fired 235 | . 64 64 . 7 14 37 49 . Gun 33 | . . . . . . 23 10 . Cannon 197 | . 64 59 . 7 14 14 39 . Launcher 5 | . . 5 . . . . . . Special . | . . . . . . . . . Kinetic 48 | . . . . . . 13 35 . Thermal 180 | . 64 59 . 7 13 23 14 . Explosive 5 | . . 5 . . . . . . Electromagnetic 2 | . . . . . 1 1 . . Robot Hit Streak 11 | . 6 6 . 6 6 11 8 . Robot Miss Streak 9 | . 9 6 . 1 2 2 6 . Penetration Max . | . . . . . . . . . Secondary Targets . | . . . . . . . . . Shots Hit Robots 141 | . 30 33 . 8 11 27 32 . Core Hits 80 | . 23 14 . 3 13 16 11 . Critical Kills 1 | . . . . 1 . . . . Critical Parts Destroyed . | . . . . . . . . . Critical Strikes 4 | . . . . 2 . 1 1 . Meltdown 1 | . . . . 1 . . . . Blast 2 | . . . . . . 1 1 . Impale 1 | . . . . 1 . . . . Melee Attacks 3 | . . . . 3 . . . . Impact . | . . . . . . . . . Slashing . | . . . . . . . . . Piercing 3 | . . . . 3 . . . . Sneak Attacks . | . . . . . . . . . Combat Hostiles . | . . . . . . . . . Follow-up Attacks . | . . . . . . . . . Damage Inflicted 4609 | . 735 816 . 178 589 1439 850 2 Guns 414 | . . . . . . 275 139 . Cannons 2689 | . 735 655 . 123 206 282 688 . Explosions 1405 | . . 157 . . 378 870 . . Melee 55 | . . . . 55 . . . . Ramming 46 | . . 4 . . 5 12 23 2 Kinetic 880 | . . . . . . 275 605 . Thermal 3195 | . 735 655 . 123 484 976 222 . Explosive 157 | . . 157 . . . . . . Electromagnetic 276 | . . . . . 100 176 . . Impact . | . . . . . . . . . Slashing . | . . . . . . . . . Piercing 55 | . . . . 55 . . . . Highest Corruption 3 | . . . . . 3 1 3 3 Average Corruption 1 | . . . . . 3 1 1 3 Corruption Purged . | . . . . . . . . . Corruption Blocked . | . . . . . . . . . Effects 20 | . . . . . 6 1 9 4 Message Errors 4 | . . . . . . . 3 1 Matter Fused 2 | . . . . . . . 1 1 Heat Flow Errors 3 | . . . . . 1 . . 2 Energy Discharges 4 | . . . . . 1 1 2 . Parts Rejected 2 | . . . . . 1 . 1 . Data Loss (minor) 2 | . . . . . . . 2 . Misfires 1 | . . . . . 1 . . . Alerts 1 | . . . . . 1 . . . Weapon Failures 1 | . . . . . 1 . . . Overload Shots . | . . . . . . . . . Overflow Damage 136 | . 1 10 . 22 5 98 . . Projectiles 10 | . 1 4 . . 5 . . . Explosions 104 | . . 6 . . . 98 . . Melee 22 | . . . . 22 . . . . Knockbacks 11 | . . . . . . 3 8 . Impact . | . . . . . . . . . Kinetic 11 | . . . . . . 3 8 . Secondary . | . . . . . . . . . Self-Inflicted Damage 122 | . . 20 . . 88 6 7 1 Shots 7 | . . 1 . . 6 . . . Rammed 7 | . . 2 . . 1 2 1 1 Targets Rammed 9 | . . 2 . . 1 2 3 1 Kicked 2 | . . . . . . . 2 . Crushed . | . . . . . . . . . Highest Temperature 275 | . 195 273 . 108 275 243 78 174 Average Temperature 71 | . 52 96 . 48 90 91 26 83 Received Heat Transfer 1499 | . 12 102 . 44 306 270 747 18 Siege Activations . | . . . . . . . . . Robots Corrupted . | . . . . . . . . . Combat Hostiles . | . . . . . . . . . Parts Fried . | . . . . . . . . . Impact Corruptions . | . . . . . . . . . Robots Melted 3 | . . 1 . 1 1 . . . Combat Hostiles 3 | . . 1 . 1 1 . . . Parts Melted 13 | . . 5 . . 8 . . . Heat Transferred 6076 | . 1332 1184 . 222 1752 1142 444 . Parts Sabotaged . | . . . . . . . . . Parts Stolen 4 | . . . . . . . 3 1 Parts Stripped . | . . . . . . . . . Power Chain Reactions . | . . . . . . . . . Latent Energy Used 259 | . . . . . 200 59 . . LE Corruption 4 | . . . . . 3 1 . . Alert | -11 -10 -10 -10 -9 -8 -7 -7 -7 ------- Run | Yrd Mat Min Exi Min Mat Fac Low Low Peak Influence 331 | . 331 302 . 50 82 181 . . Initial 61 | . . 61 . . 5 18 . . Average 83 | . 161 165 . 10 34 44 . . Maximum Alert Level 1 | . 1 1 . . . . . . Low Security (%) 86 | 100 50 75 . 100 100 100 . . Level 1 13 | . 49 24 . . . . . . Level 2 . | . . . . . . . . . Level 3 . | . . . . . . . . . Level 4 . | . . . . . . . . . Level 5 . | . . . . . . . . . High Security . | . . . . . . . . . Max Security . | . . . . . . . . . Squads Dispatched 4 | . . . . . 2 2 . . Investigation . | . . . . . . . . . Extermination 1 | . . . . . . 1 . . Reinforcement 1 | . . . . . . 1 . . Assault 1 | . . . . . 1 . . . Garrison 1 | . . . . . 1 . . . Intercept . | . . . . . . . . . Searches Triggered . | . . . . . . . . . Construction Impeded . | . . . . . . . . . Haulers Reinforced 1 | . . . . . . 1 . . Active Scanning Responses . | . . . . . . . . . Cargo Convoy Interrupts . | . . . . . . . . . Stealth | -11 -10 -10 -10 -9 -8 -7 -7 -7 --------- Run | Yrd Mat Min Exi Min Mat Fac Low Low Distress Signals 5 | . 2 . . . 3 . . . Communications Jammed . | . . . . . . . . . Distress Signals . | . . . . . . . . . Times Spotted 99 | . 14 15 . 4 12 10 28 16 Peak Tracking Total 15 | . 3 3 . 2 5 4 15 5 Tactical Retreats 14 | . 1 2 . . 2 1 3 5 Traps | -11 -10 -10 -10 -9 -8 -7 -7 -7 ------- Run | Yrd Mat Min Exi Min Mat Fac Low Low Traps Triggered . | . . . . . . . . . Indirectly . | . . . . . . . . . Trap Hack Attempts . | . . . . . . . . . Triggered . | . . . . . . . . . Disarmed . | . . . . . . . . . Reprogrammed . | . . . . . . . . . Reused . | . . . . . . . . . Traps Extracted . | . . . . . . . . . Installed . | . . . . . . . . . Triggered 2 | . . . . . . . . 2 Machines | -11 -10 -10 -10 -9 -8 -7 -7 -7 ---------- Run | Yrd Mat Min Exi Min Mat Fac Low Low Machines Disabled 8 | . 2 2 . . . 4 . . Max in Single Turn 4 | . 1 1 . . . 4 . . Garrison Access 1 | . . . . . 1 . . . Machines Repaired . | . . . . . . . . . Machines Dismantled . | . . . . . . . . . Machines Sabotaged . | . . . . . . . . . Overloaded Fab Kills . | . . . . . . . . . Hacking | -11 -10 -10 -10 -9 -8 -7 -7 -7 --------- Run | Yrd Mat Min Exi Min Mat Fac Low Low Machines Accessed 3 | . . . 1 . . . 1 1 Terminals . | . . . . . . . . . Fabricators . | . . . . . . . . . Repair Stations . | . . . . . . . . . Recycling Units . | . . . . . . . . . Scanalyzers . | . . . . . . . . . Garrison Access . | . . . . . . . . . Total Hacks 3 | . . . 1 . . . 1 1 Successful 3 | . . . 1 . . . 1 1 Failed . | . . . . . . . . . Catastrophic . | . . . . . . . . . Database Lockouts . | . . . . . . . . . Manual 1 | . . . 1 . . . . . Terminals . | . . . . . . . . . Fabricators . | . . . . . . . . . Repair Stations . | . . . . . . . . . Recycling Units . | . . . . . . . . . Scanalyzers . | . . . . . . . . . Garrison Access . | . . . . . . . . . Terminal Hacks 3 | . . . 1 . . . 1 1 Open Door 2 | . . . . . . . 1 1 Derelict Proto ID Bank 1 | . . . 1 . . . . . Fabricator Hacks . | . . . . . . . . . Repair Station Hacks . | . . . . . . . . . Recycling Unit Hacks . | . . . . . . . . . Scanalyzer . | . . . . . . . . . Garrison Access Hacks . | . . . . . . . . . Unauthorized Hacks . | . . . . . . . . . Terminals . | . . . . . . . . . Fabricators . | . . . . . . . . . Repair Stations . | . . . . . . . . . Recycling Units . | . . . . . . . . . Scanalyzers . | . . . . . . . . . Garrison Access . | . . . . . . . . . Data Cores Recovered 1 | . 1 . . . . . . . Used . | . . . . . . . . . Hacking Detections . | . . . . . . . . . Full Trace Events . | . . . . . . . . . Feedback Events . | . . . . . . . . . Feedback Blocked . | . . . . . . . . . Robot Schematics Acquired . | . . . . . . . . . Robots Built . | . . . . . . . . . Authchips . | . . . . . . . . . Time . | . . . . . . . . . Total Robot Build Rating . | . . . . . . . . . Part Schematics Acquired . | . . . . . . . . . Parts Built . | . . . . . . . . . Authchips . | . . . . . . . . . Time . | . . . . . . . . . Total Part Build Rating . | . . . . . . . . . Parts Repaired . | . . . . . . . . . Time . | . . . . . . . . . Parts Recycled . | . . . . . . . . . Recycled Matter . | . . . . . . . . . Retrieved Matter . | . . . . . . . . . Retrieved Components . | . . . . . . . . . Parts Scanalyzed . | . . . . . . . . . Part Schematics Acquired . | . . . . . . . . . Parts Damaged . | . . . . . . . . . Bothacking | -11 -10 -10 -10 -9 -8 -7 -7 -7 ------------ Run | Yrd Mat Min Exi Min Mat Fac Low Low Used RIF Installer . | . . . . . . . . . Robots Hacked . | . . . . . . . . . Non-combat . | . . . . . . . . . Combat . | . . . . . . . . . Robot Hacks Applied . | . . . . . . . . . Relay Couplers Released 3 | . . . . . 3 . . . Machine Destruction 3 | . . . . . 3 . . . Fabnet Peak Effective % . | . . . . . . . . . Robots Rewired . | . . . . . . . . . Allies Hacked . | . . . . . . . . . Hacks Repelled . | . . . . . . . . . Allies | -11 -10 -10 -10 -9 -8 -7 -7 -7 -------- Run | Yrd Mat Min Exi Min Mat Fac Low Low Total Allies 3 | . . 3 . . . . . . Largest Group 3 | . . 3 . . . . . . Highest-Rated Group 40 | . . 40 . . . . . . Highest-Rated Ally 16 | . . 16 . . . . . . Total Orders . | . . . . . . . . . Ally Attacks 14 | . . 14 . . . . . . Total Damage 143 | . . 143 . . . . . . Kills 1 | . . 1 . . . . . . Allies Corrupted . | . . . . . . . . . Allies Melted . | . . . . . . . . . Intel | -11 -10 -10 -10 -9 -8 -7 -7 -7 ------- Run | Yrd Mat Min Exi Min Mat Fac Low Low Robot Analysis Total . | . . . . . . . . . Derelict Logs Recovered 6 | . . 1 . 3 . . . 2 Drone Launches . | . . . . . . . . . Drone Recoveries . | . . . . . . . . . Exploration | -11 -10 -10 -10 -9 -8 -7 -7 -7 ------------- Run | Yrd Mat Min Exi Min Mat Fac Low Low Turns Passed 4457 | 44 462 708 404 570 468 670 844 287 Spaces Moved 3627 | 40 356 604 306 518 365 525 526 387 Core 446 | 1 . . . . 7 . 299 139 Treads . | . . . . . . . . . Legs 176 | . . . . . 20 . 86 70 Wheels 2785 | 39 356 604 306 518 299 522 141 . Hover 220 | . . . . . 39 3 . 178 Flight . | . . . . . . . . . Fastest Speed 50 | 50 80 90 90 90 80 80 50 50 Average Speed 97 | 79 89 90 90 90 110 96 140 70 Slowest Speed 550 | 80 105 90 90 90 550 255 300 120 Overloaded Moves . | . . . . . . . . . Propulsion Burnouts . | . . . . . . . . . Robots Hopped . | . . . . . . . . . Cave-ins Triggered . | . . . . . . . . . Exploration Rate (%) 46 | 3 37 87 61 86 23 11 55 59 Regions Visited 8 Branch Regions 5 Pre-discovered Areas 3 | . . 1 . 2 . . . . Known Exits Taken . | . . . . . . . . . Unknown Exits Taken 8 | 1 1 1 1 1 1 1 1 . Scrap Searched 8 | . . 1 . 3 . . 2 2 Spaces Dug . | . . . . . . . . . Terrain Destroyed 115 | . . 43 . . 43 19 10 . Melee . | . . . . . . . . . Projectile 15 | . . 2 . . . 3 10 . AOE 100 | . . 41 . . 43 16 . . Terrain Rammed . | . . . . . . . . . Walls Destroyed . | . . . . . . . . . Machines Disabled . | . . . . . . . . . Actions | -11 -10 -10 -10 -9 -8 -7 -7 -7 --------- Run | Yrd Mat Min Exi Min Mat Fac Low Low Total 4273 | 49 437 702 434 612 411 649 581 398 Wait 348 | . 15 46 121 76 10 72 8 . Move 3619 | 39 355 603 305 517 364 524 525 387 Hop . | . . . . . . . . . Pick Up 30 | 4 10 . 3 3 3 3 1 3 Fast Attach 35 | 6 1 3 1 . 7 5 6 6 Attach 14 | . . 1 . 1 5 3 4 . Detach 2 | . . . . . 1 . 1 . Swap 35 | . 12 3 1 1 4 10 4 . Drop 30 | . 12 1 3 4 2 5 3 . Fire 147 | . 32 43 . 7 14 25 26 . Melee 3 | . . . . 3 . . . . Ram 7 | . . 2 . . 1 2 1 1 Kick 2 | . . . . . . . 2 . Crush . | . . . . . . . . . Escape Stasis . | . . . . . . . . . Rewire 1 | . . . . . . . . 1 Trap . | . . . . . . . . . Miscellaneous . | . . . . . . . . . Route ------- -11/Scrapyard -10/Materials -10/Mines (discovered 3 exits: [*Mat x2] / *Exi) -10/Exiles (discovered 2 exits: [*Min x2]) -9/Mines -8/Materials -7/Factory -7/Lower Caves -7/Lower Caves History --------- Turn | Location | Event 11 | -11/Scrapyard | Discovered new exit (range 15) 45 | -11/Scrapyard | Entered Materials 164 | -10/Materials | Discovered new exit (range 13) 359 | -10/Materials | Build established: Mutant 507 | -10/Materials | Entered Mines 508 | -10/Mines | Learned location of Storage (-9) 521 | -10/Mines | Discovered new exit (range 16) 547 | -10/Mines | Discovered new exit (range 15) 711 | -10/Mines | Assisted by bots powering up and referring to "LRC-V3" 771 | -10/Mines | Lost 3 allies 793 | -10/Mines | Learned Materials terminal intel 922 | -10/Mines | Joined a pair of Derelicts in attacking an 0b10 outpost 1033 | -10/Mines | Found a hidden stash of uninstalled traps 1202 | -10/Mines | Lost 3 parts (1u2w) 1211 | -10/Mines | Deemed a non-threat by the Exiles lab entrance 1211 | -10/Mines | Discovered new exit (range 5) 1215 | -10/Mines | Entered Exiles 1228 | -10/Exiles | Discovered new exit (range 15) 1261 | -10/Exiles | Met 8R-AWN 1313 | -10/Exiles | Met EX-HEX 1337 | -10/Exiles | Met EX-BIN 1348 | -10/Exiles | Aligned with FarCom system 1349 | -10/Exiles | Given EX-Vault access code 1372 | -10/Exiles | Opened EX-Vault 1379 | -10/Exiles | Found Latent Energy Streamer 1492 | -10/Exiles | Warned to stay clear of 0b10 Research branches 1498 | -10/Exiles | Exiles lab attacked by MAIN.C 1516 | -10/Exiles | Found Firepult 1611 | -10/Exiles | Discovered new exit (range 10) 1619 | -10/Exiles | Stole two prototypes: Latent Energy Streamer, Firepult 1619 | -10/Exiles | Entered Mines 1627 | -9/Mines | Learned location of Zion (-6) 1742 | -9/Mines | Learned Materials terminal intel 1776 | -9/Mines | Assembled infested the area 1781 | -9/Mines | Assisted by a Guerilla fighting off Assembled 1837 | -9/Mines | A weapon hastily lodged in a ceiling crevice suddenly fell to the ground 1891 | -9/Mines | Received a Rocket Launcher from a helpful Derelict 2059 | -9/Mines | Discovered new exit (range 15) 2135 | -9/Mines | Build established: Assassin 2189 | -9/Mines | Entered Materials 2189 | -8/Materials | Evolved 4 slots: Propulsion x3, Utility x1 2190 | -8/Materials | Loaded intel: 12 terminal locations 2366 | -8/Materials | Garrison activated, responded to threat 2609 | -8/Materials | Core integrity fell below 50% 2645 | -8/Materials | Discovered new exit (range 16) 2657 | -8/Materials | Entered Factory 2657 | -7/Factory | Evolved 2 slots: Power x1, Utility x1 2659 | -7/Factory | FarCom data flow suspended 2668 | -7/Factory | Lost 3 parts (1p1u1w) 3306 | -7/Factory | Discovered new exit (range 16) 3327 | -7/Factory | Entered Lower Caves 3327 | -7/Lower Caves | Spotted 9N-T5P(f) 3327 | -7/Lower Caves | Spotted K3-LCN(f) 3328 | -7/Lower Caves | Latent Energy Streamer stolen by Master Thief 3329 | -7/Lower Caves | Encountered a Master Thief 3329 | -7/Lower Caves | Encountered a Master Thief 3330 | -7/Lower Caves | Imp. Deuterium Engine stolen by Master Thief 3331 | -7/Lower Caves | Spotted W0-7P1(f) 3332 | -7/Lower Caves | Encountered a Master Thief 3335 | -7/Lower Caves | Mic. Nuclear Core stolen by Master Thief 3357 | -7/Lower Caves | Lost 3 parts (2n1u) 3796 | -7/Lower Caves | Build established: Mutant 4031 | -7/Lower Caves | Lost 5 parts (2u3w) 4121 | -7/Lower Caves | Attracted the attention of an 0b10 outpost 4124 | -7/Lower Caves | Core integrity fell below 50% 4141 | -7/Lower Caves | Discovered new exit (range 11) 4158 | -7/Lower Caves | Lost 5 parts (2n3u) 4171 | -7/Lower Caves | Entered another Lower Caves area 4171 | -7/Lower Caves | Spotted CS-XTX(f) 4171 | -7/Lower Caves | Spotted Z5-0FS(f) 4173 | -7/Lower Caves | Encountered a Master Thief 4173 | -7/Lower Caves | Encountered a Master Thief 4183 | -7/Lower Caves | Imp. Deuterium Engine stolen by Master Thief 4400 | -7/Lower Caves | Learned Factory security intel 4433 | -7/Lower Caves | Core integrity fell below 20% 4449 | -7/Lower Caves | Lost 4 parts (1n1u2w) 4452 | -7/Lower Caves | Learned Factory security intel 4458 | -7/Lower Caves | Destroyed by S-27 Virus with Autogun Last Messages --------------- 04332_ Acquired Hvy. Battle Rifle. 04379_ G-50 Soldier misfires. 04387_ Datajack destroyed. 04389_ |,JU|:9EVBOMCH:M